[Event "Elitserien 2019/2020, round 7-9"]
[Site "Elite stadshotellet, Kungsgatan 6, Vaxjo, Sweden"]
[Date "2020.10.16"]
[Round "1.7"]
[White "Carlsson, Ludvig"]
[Black "Thornert, Hakan"]
[Result "1/2-1/2"]
[TimeControl "90 minutes for 40 moves + 30 minutes for the rest of the game + 30 seconds per move from move one."]
[WhiteTitle "CM"]
[WhiteFideId "1727010"]
[BlackFideId "1703749"]
[WhiteElo "2199"]
[BlackElo "2175"]

1. d4 {[%clk 01:30:56]} {[%emt 00:00:02]} Nf6 {[%clk 01:30:49]} {[%emt
00:00:12]} 2. c4 {[%clk 01:31:17]} {[%emt 00:00:08]} g6 {[%clk 01:31:02]}
{[%emt 00:00:17]} 3. Nf3 {[%clk 01:31:41]} {[%emt 00:00:06]} Bg7 {[%clk
01:31:23]} {[%emt 00:00:09]} 4. Nc3 {[%clk 01:32:01]} {[%emt 00:00:09]} d5
{[%clk 01:31:26]} {[%emt 00:00:28]} 5. Bf4 {[%clk 01:32:23]} {[%emt 00:00:08]}
O-O {[%clk 01:30:51]} {[%emt 00:01:05]} 6. e3 {[%clk 01:32:47]} {[%emt
00:00:06]} c5 {[%clk 01:29:05]} {[%emt 00:02:16]} 7. dxc5 {[%clk 01:33:08]}
{[%emt 00:00:09]} Qa5 {[%clk 01:26:50]} {[%emt 00:02:45]} 8. Rc1 {[%clk
01:33:29]} {[%emt 00:00:09]} Rd8 {[%clk 01:01:37]} {[%emt 00:25:42]} 9. Qa4
{[%clk 01:07:09]} {[%emt 00:26:51]} Qxc5 {[%clk 00:58:59]} {[%emt 00:03:08]} 10.
b4 {[%clk 01:04:14]} {[%emt 00:03:25]} Qc6 {[%clk 00:50:10]} {[%emt 00:09:17]}
11. b5 {[%clk 00:59:35]} {[%emt 00:05:11]} Qc5 {[%clk 00:48:36]} {[%emt
00:02:03]} 12. Qb3 {[%clk 00:59:51]} {[%emt 00:00:14]} Be6 {[%clk 00:40:39]}
{[%emt 00:08:27]} 13. Nd4 {[%clk 00:57:45]} {[%emt 00:02:35]} Nbd7 {[%clk
00:40:40]} {[%emt 00:00:29]} 14. Nxe6 {[%clk 00:56:41]} {[%emt 00:01:35]} fxe6
{[%clk 00:41:04]} {[%emt 00:00:08]} 15. Na4 {[%clk 00:55:38]} {[%emt 00:01:32]}
Qc8 {[%clk 00:40:07]} {[%emt 00:01:25]} 16. c5 {[%clk 00:40:00]} {[%emt
00:16:09]} Ne4 {[%clk 00:24:19]} {[%emt 00:16:19]} 17. Qa3 {[%clk 00:38:11]}
{[%emt 00:02:17]} e5 {[%clk 00:22:27]} {[%emt 00:02:24]} 18. Bg3 {[%clk
00:38:19]} {[%emt 00:00:22]} Qc7 {[%clk 00:22:02]} {[%emt 00:00:54]} 19. Qb4
{[%clk 00:32:59]} {[%emt 00:05:51]} Rac8 {[%emt 00:03:51]} 20. c6 {[%clk
00:29:11]} {[%emt 00:04:15]} e6 {[%clk 00:17:19]} {[%emt 00:01:55]} 21. Bd3
{[%clk 00:12:47]} {[%emt 00:16:54]} Bf8 {[%clk 00:16:49]} {[%emt 00:00:59]} 22.
Qb2 {[%clk 00:13:04]} {[%emt 00:00:14]} Qa5+ {[%clk 00:10:47]} {[%emt
00:06:32]} 23. Ke2 {[%clk 00:13:27]} {[%emt 00:00:08]} Qxa4 {[%clk 00:08:07]}
{[%emt 00:03:10]} 24. cxd7 {[%clk 00:13:40]} {[%emt 00:00:16]} Rxc1 {[%clk
00:07:26]} {[%emt 00:01:11]} 25. Rxc1 {[%clk 00:13:25]} {[%emt 00:00:46]} Nxg3+
{[%clk 00:07:33]} {[%emt 00:00:23]} 26. hxg3 {[%clk 00:13:09]} {[%emt
00:00:46]} e4 {[%clk 00:07:41]} {[%emt 00:00:22]} 27. Bb1 {[%clk 00:13:10]}
{[%emt 00:00:29]} Rxd7 {[%clk 00:07:33]} {[%emt 00:00:38]} 28. Qb3 {[%clk
00:09:47]} {[%emt 00:03:54]} Qxb3 {[%clk 00:06:02]} {[%emt 00:02:01]} 29. axb3
{[%clk 00:10:10]} {[%emt 00:00:07]} Kf7 {[%clk 00:04:55]} {[%emt 00:01:37]} 30.
Rc8 {[%clk 00:08:22]} {[%emt 00:02:18]} Bd6 {[%clk 00:04:34]} {[%emt 00:00:50]}
31. g4 {[%clk 00:07:37]} {[%emt 00:01:16]} Rc7 {[%clk 00:01:28]} {[%emt
00:03:33]} 32. Rxc7+ {[%clk 00:08:01]} {[%emt 00:00:09]} Bxc7 {[%clk 00:01:55]}
{[%emt 00:00:03]} 33. f3 {[%clk 00:08:24]} {[%emt 00:00:07]} exf3+ {[%clk
00:01:50]} {[%emt 00:00:35]} 34. Kxf3 {[%clk 00:08:41]} {[%emt 00:00:13]} Kf6
{[%clk 00:01:54]} {[%emt 00:00:25]} 35. Bd3 {[%clk 00:03:10]} {[%emt 00:06:01]}
Ke5 {[%clk 00:02:04]} {[%emt 00:00:21]} 36. Ke2 {[%clk 00:03:32]} {[%emt
00:00:07]} Kd6 {[%clk 00:01:11]} {[%emt 00:01:22]} 37. Kd2 {[%clk 00:03:42]}
{[%emt 00:00:21]} Kc5 {[%clk 00:01:32]} {[%emt 00:00:09]} 38. Kc3 {[%clk
00:04:00]} {[%emt 00:00:12]} Be5+ {[%clk 00:01:40]} {[%emt 00:00:22]} 39. Kc2
{[%clk 00:04:06]} {[%emt 00:00:24]} Kb4 {[%clk 00:01:24]} {[%emt 00:00:45]} 40.
Be2 {[%clk 00:04:21]} {[%emt 00:00:17]} Bg3 {[%clk 00:01:13]} {[%emt 00:00:38]}
41. Bd3 {[%clk 00:02:38]} {[%emt 00:02:16]} Bf2 {[%clk 00:24:55]} {[%emt
00:06:47]} 42. e4 {[%clk 00:32:38]} {[%emt 00:00:30]} Kc5 {[%clk 00:22:27]}
{[%emt 00:02:58]} 43. exd5 {[%clk 00:30:54]} {[%emt 00:02:15]} exd5 {[%clk
00:20:41]} {[%emt 00:02:15]} 44. Be2 {[%clk 00:30:48]} {[%emt 00:00:37]} Kd4
{[%clk 00:20:55]} {[%emt 00:00:15]} 45. Bf3 {[%clk 00:31:12]} {[%emt 00:00:06]}
b6 {[%clk 00:17:40]} {[%emt 00:03:43]} 46. Kd2 {[%clk 00:30:31]} {[%emt
00:01:12]} Bg3 {[%clk 00:16:44]} {[%emt 00:01:26]} 47. Kc2 {[%clk 00:30:36]}
{[%emt 00:00:25]} Bf4 {[%clk 00:16:39]} {[%emt 00:00:34]} 48. Kd1 {[%clk
00:30:52]} {[%emt 00:00:15]} Kc5 {[%clk 00:10:39]} {[%emt 00:06:29]} 49. Be2
{[%clk 00:30:56]} {[%emt 00:00:26]} Kd4 {[%clk 00:06:21]} {[%emt 00:04:48]} 50.
Bf3 {[%clk 00:30:59]} {[%emt 00:00:28]} Bd6 {[%clk 00:06:11]} {[%emt 00:00:38]}
51. Kc2 {[%clk 00:30:44]} {[%emt 00:00:47]} Bc5 {[%clk 00:06:31]} {[%emt
00:00:10]} 52. Kd2 {[%clk 00:31:00]} {[%emt 00:00:15]} Ke5 {[%clk 00:06:54]}
{[%emt 00:00:07]} 53. Kd3 {[%clk 00:30:50]} {[%emt 00:00:39]} Bg1 {[%clk
00:06:19]} {[%emt 00:01:06]} 54. Ke2 {[%clk 00:29:50]} {[%emt 00:01:29]} d4
{[%clk 00:04:13]} {[%emt 00:02:37]} 55. Kf1 {[%clk 00:29:04]} {[%emt 00:01:16]}
Be3 {[%clk 00:04:18]} {[%emt 00:00:24]} 56. Ke2 {[%clk 00:29:29]} {[%emt
00:00:05]} Kf4 {[%clk 00:04:40]} {[%emt 00:00:08]} 57. Kd3 {[%clk 00:29:52]}
{[%emt 00:00:07]} Kg3 {[%clk 00:04:28]} {[%emt 00:00:42]} 58. Ke2 {[%clk
00:30:15]} {[%emt 00:00:08]} Bc1 {[%clk 00:04:27]} {[%emt 00:00:30]} 59. Kd3
{[%clk 00:30:37]} {[%emt 00:00:10]} Bb2 {[%clk 00:04:35]} {[%emt 00:00:20]} 60.
Ke2 {[%clk 00:30:57]} {[%emt 00:00:11]} Bc3 {[%clk 00:04:29]} {[%emt 00:00:35]}
61. Kd3 {[%clk 00:30:43]} {[%emt 00:00:44]} Kf2 {[%clk 00:02:42]} {[%emt
00:02:17]} 62. Bd5 {[%clk 00:30:43]} {[%emt 00:00:31]} Kg3 {[%clk 00:02:06]}
{[%emt 00:01:05]} 63. Bf3 {[%clk 00:30:32]} {[%emt 00:00:42]} Kf4 {[%clk
00:02:03]} {[%emt 00:00:34]} 64. Ke2 {[%clk 00:30:40]} {[%emt 00:00:21]} Ke5
{[%clk 00:02:27]} {[%emt 00:00:06]} 65. Kd3 {[%clk 00:30:59]} {[%emt 00:00:12]}
Kd6 {[%clk 00:02:45]} {[%emt 00:00:12]} 66. Kc4 {[%clk 00:31:04]} {[%emt
00:00:25]} Ba1 {[%clk 00:02:38]} {[%emt 00:00:37]} 67. Be2 {[%clk 00:31:23]}
{[%emt 00:00:12]} Ke5 {[%clk 00:02:14]} {[%emt 00:00:53]} 68. Bf3 {[%clk
00:31:43]} {[%emt 00:00:11]} Kf4 {[%clk 00:02:14]} {[%emt 00:00:30]} 69. Kd3
{[%clk 00:29:32]} {[%emt 00:02:40]} Bc3 {[%clk 00:01:47]} {[%emt 00:00:55]} 70.
Ke2 {[%clk 00:29:56]} {[%emt 00:00:08]} Kg3 {[%clk 00:01:42]} {[%emt 00:00:35]}
71. Kd3 {[%clk 00:30:13]} {[%emt 00:00:12]} Kf4 {[%clk 00:01:31]} {[%emt
00:00:40]} 72. Ke2 {[%clk 00:27:51]} {[%emt 00:02:53]} Ke5 {[%clk 00:01:33]}
{[%emt 00:00:28]} 73. Bb7 {[%clk 00:26:53]} {[%emt 00:01:27]} Kf4 {[%clk
00:01:54]} {[%emt 00:00:09]} 74. Bf3 {[%clk 00:26:14]} {[%emt 00:01:09]} Ba1
{[%clk 00:01:58]} {[%emt 00:00:27]} 75. Kd3 {[%clk 00:26:32]} {[%emt 00:00:12]}
Bc3 {[%clk 00:02:19]} {[%emt 00:00:09]} 76. Ke2 {[%clk 00:09:08]} {[%emt
00:17:53]} Ba1 {[%clk 00:02:41]} {[%emt 00:00:08]} 77. Kd3 {[%clk 00:09:33]}
{[%emt 00:00:05]} Bc3 {[%clk 00:03:06]} {[%emt 00:00:06]} 78. Ke2 {[%clk
00:09:55]} {[%emt 00:00:07]} Ba1 {[%clk 00:03:31]} {[%emt 00:00:05]} 1/2-1/2

[Event "Elitserien 2019/2020, round 7-9"]
[Site "Elite stadshotellet, Kungsgatan 6, Vaxjo, Sweden"]
[Date "2020.10.16"]
[Round "1.8"]
[White "Malesevic, Nedeljko"]
[Black "Petersson, Baldur Teodor"]
[Result "1/2-1/2"]
[TimeControl "90 minutes for 40 moves + 30 minutes for the rest of the game + 30 seconds per move from move one."]
[WhiteTitle "FM"]
[BlackTitle "CM"]
[WhiteFideId "1703447"]
[BlackFideId "2309157"]
[WhiteElo "2257"]
[BlackElo "2247"]

1. d4 {[%clk 01:30:54]} {[%emt 00:00:05]} Nf6 {[%clk 01:30:27]} {[%emt
00:00:33]} 2. c4 {[%clk 01:31:11]} {[%emt 00:00:14]} g6 {[%clk 01:30:50]}
{[%emt 00:00:07]} 3. Nc3 {[%clk 01:31:28]} {[%emt 00:00:13]} Bg7 {[%clk
01:31:13]} {[%emt 00:00:07]} 4. e4 {[%clk 01:31:35]} {[%emt 00:00:22]} d6
{[%clk 01:31:35]} {[%emt 00:00:08]} 5. h3 {[%clk 01:29:57]} {[%emt 00:02:07]}
O-O {[%clk 01:31:55]} {[%emt 00:00:11]} 6. Be3 {[%clk 01:28:59]} {[%emt
00:01:29]} e5 {[%clk 01:30:50]} {[%emt 00:01:34]} 7. d5 {[%clk 01:27:41]}
{[%emt 00:01:48]} Nbd7 {[%clk 01:29:02]} {[%emt 00:02:18]} 8. Nf3 {[%clk
01:27:05]} {[%emt 00:01:06]} Nc5 {[%clk 01:28:11]} {[%emt 00:01:21]} 9. Nd2
{[%clk 01:26:56]} {[%emt 00:00:39]} a5 {[%clk 01:28:26]} {[%emt 00:00:16]} 10.
a3 {[%clk 01:27:05]} {[%emt 00:00:21]} b6 {[%clk 01:23:28]} {[%emt 00:05:28]}
11. b4 {[%clk 01:25:49]} {[%emt 00:01:46]} axb4 {[%clk 01:22:46]} {[%emt
00:01:12]} 12. axb4 {[%clk 01:26:10]} {[%emt 00:00:08]} Rxa1 {[%clk 01:23:10]}
{[%emt 00:00:07]} 13. Qxa1 {[%clk 01:26:34]} {[%emt 00:00:06]} Na6 {[%clk
01:23:09]} {[%emt 00:00:31]} 14. Qa3 {[%clk 01:24:15]} {[%emt 00:02:48]} Nh5
{[%clk 01:19:06]} {[%emt 00:04:33]} 15. g4 {[%clk 01:07:30]} {[%emt 00:17:16]}
Nf4 {[%clk 01:18:21]} {[%emt 00:01:15]} 16. Rg1 {[%clk 01:06:27]} {[%emt
00:01:32]} Qe7 {[%clk 01:04:14]} {[%emt 00:14:37]} 17. Nb3 {[%clk 00:56:59]}
{[%emt 00:09:58]} Rd8 {[%clk 00:53:20]} {[%emt 00:11:24]} 18. Nb5 {[%clk
00:46:19]} {[%emt 00:11:11]} Bb7 {[%clk 00:42:02]} {[%emt 00:11:48]} 19. Nd2
{[%clk 00:32:11]} {[%emt 00:14:37]} Ra8 {[%clk 00:38:14]} {[%emt 00:04:19]} 20.
Qc3 {[%clk 00:27:44]} {[%emt 00:04:57]} Qd8 {[%clk 00:36:18]} {[%emt 00:02:25]}
21. g5 {[%clk 00:17:51]} {[%emt 00:10:23]} Bc8 {[%clk 00:29:48]} {[%emt
00:07:02]} 22. h4 {[%clk 00:12:40]} {[%emt 00:05:40]} Bd7 {[%clk 00:28:39]}
{[%emt 00:01:39]} 23. f3 {[%clk 00:11:40]} {[%emt 00:01:29]} h6 {[%clk
00:26:26]} {[%emt 00:02:44]} 24. Nb3 {[%clk 00:10:42]} {[%emt 00:01:28]} Bf8
{[%clk 00:25:11]} {[%emt 00:01:45]} 25. Qd2 {[%clk 00:09:54]} {[%emt 00:01:18]}
h5 {[%clk 00:22:50]} {[%emt 00:02:51]} 1/2-1/2

[Event "Elitserien 2019/2020, round 7-9"]
[Site "Elite stadshotellet, Kungsgatan 6, Vaxjo, Sweden"]
[Date "2020.10.16"]
[Round "1.9"]
[White "Livner, Anders"]
[Black "Solodovnichenko, Yuri"]
[Result "0-1"]
[TimeControl "90 minutes for 40 moves + 30 minutes for the rest of the game + 30 seconds per move from move one."]
[WhiteTitle "FM"]
[BlackTitle "GM"]
[WhiteFideId "1704150"]
[BlackFideId "14104369"]
[WhiteElo "2371"]
[BlackElo "2574"]

1. Nf3 {[%clk 01:30:53]} {[%emt 00:00:06]} Nf6 {[%clk 01:30:00]} {[%emt
00:01:01]} 2. g3 {[%clk 01:30:32]} {[%emt 00:00:51]} b6 {[%clk 01:29:13]}
{[%emt 00:01:17]} 3. Bg2 {[%clk 01:30:52]} {[%emt 00:00:10]} Bb7 {[%clk
01:29:37]} {[%emt 00:00:06]} 4. c4 {[%clk 01:30:26]} {[%emt 00:00:55]} c5
{[%clk 01:29:37]} {[%emt 00:00:29]} 5. Nc3 {[%clk 01:29:33]} {[%emt 00:01:24]}
e6 {[%clk 01:29:58]} {[%emt 00:00:09]} 6. O-O {[%clk 01:29:18]} {[%emt
00:00:44]} Be7 {[%clk 01:30:23]} {[%emt 00:00:06]} 7. d4 {[%clk 01:28:37]}
{[%emt 00:01:11]} cxd4 {[%clk 01:30:47]} {[%emt 00:00:06]} 8. Qxd4 {[%clk
01:29:04]} {[%emt 00:00:04]} O-O {[%clk 01:31:06]} {[%emt 00:00:10]} 9. Rd1
{[%clk 01:27:39]} {[%emt 00:01:55]} Qc8 {[%clk 01:29:57]} {[%emt 00:01:39]} 10.
b3 {[%clk 01:16:30]} {[%emt 00:11:38]} Na6 {[%clk 01:27:23]} {[%emt 00:03:05]}
11. Bb2 {[%clk 01:15:34]} {[%emt 00:01:26]} d6 {[%clk 01:22:32]} {[%emt
00:05:20]} 12. Rac1 {[%clk 01:12:34]} {[%emt 00:03:30]} Rd8 {[%clk 01:20:59]}
{[%emt 00:02:02]} 13. h3 {[%clk 01:11:35]} {[%emt 00:01:30]} Nc5 {[%clk
01:20:58]} {[%emt 00:00:31]} 14. Qe3 {[%clk 01:09:11]} {[%emt 00:02:53]} a6
{[%clk 01:18:46]} {[%emt 00:02:42]} 15. b4 {[%clk 00:52:35]} {[%emt 00:17:07]}
Ncd7 {[%clk 01:09:33]} {[%emt 00:09:43]} 16. Nd5 {[%clk 00:52:37]} {[%emt
00:00:28]} exd5 {[%clk 01:09:56]} {[%emt 00:00:07]} 17. Qxe7 {[%clk 00:52:40]}
{[%emt 00:00:27]} Re8 {[%clk 01:09:32]} {[%emt 00:00:54]} 18. Qxd6 {[%clk
00:53:01]} {[%emt 00:00:09]} dxc4 {[%clk 01:09:18]} {[%emt 00:00:44]} 19. Bxf6
{[%clk 00:47:34]} {[%emt 00:05:58]} Nxf6 {[%clk 01:08:50]} {[%emt 00:00:57]} 20.
Qxb6 {[%clk 00:46:20]} {[%emt 00:01:44]} Rxe2 {[%clk 01:06:17]} {[%emt
00:03:03]} 21. Nd4 {[%clk 00:20:55]} {[%emt 00:25:55]} Bxg2 {[%clk 00:54:35]}
{[%emt 00:12:12]} 22. Kxg2 {[%clk 00:15:08]} {[%emt 00:06:17]} Rxa2 {[%clk
00:50:44]} {[%emt 00:04:20]} 23. Nc6 {[%clk 00:13:26]} {[%emt 00:02:12]} Qe6
{[%clk 00:49:04]} {[%emt 00:02:09]} 24. Rd8+ {[%clk 00:10:15]} {[%emt
00:03:42]} Rxd8 {[%clk 00:49:23]} {[%emt 00:00:12]} 25. Qxd8+ {[%clk 00:10:43]}
{[%emt 00:00:03]} Ne8 {[%clk 00:46:36]} {[%emt 00:03:16]} 26. Rxc4 {[%clk
00:09:11]} {[%emt 00:02:01]} Qe1 {[%clk 00:44:43]} {[%emt 00:02:23]} 27. Qd4
{[%clk 00:05:29]} {[%emt 00:04:13]} Ra1 {[%clk 00:40:48]} {[%emt 00:04:24]} 28.
Kf3 {[%clk 00:05:53]} {[%emt 00:00:07]} Ra3+ {[%clk 00:34:18]} {[%emt
00:07:00]} 29. Kg2 {[%clk 00:05:17]} {[%emt 00:01:06]} Ra1 {[%clk 00:33:06]}
{[%emt 00:01:42]} 30. Kf3 {[%clk 00:05:45]} {[%emt 00:00:02]} Qh1+ {[%clk
00:31:33]} {[%emt 00:02:02]} 31. Kf4 {[%clk 00:04:06]} {[%emt 00:02:10]} Re1
{[%clk 00:31:37]} {[%emt 00:00:25]} 32. h4 {[%clk 00:02:53]} {[%emt 00:01:43]}
h6 {[%clk 00:30:44]} {[%emt 00:01:23]} 33. Ne5 {[%clk 00:02:54]} {[%emt
00:00:30]} g5+ {[%clk 00:29:58]} {[%emt 00:01:17]} 34. Kf5 {[%clk 00:02:03]}
{[%emt 00:01:20]} Ng7+ {[%clk 00:26:51]} {[%emt 00:03:37]} 35. Kf6 {[%clk
00:02:30]} {[%emt 00:00:04]} Qf3+ {[%clk 00:26:53]} {[%emt 00:00:28]} 36. Qf4
{[%clk 00:01:24]} {[%emt 00:01:36]} Ne8+ {[%clk 00:26:36]} {[%emt 00:00:46]} 37.
Kf5 {[%clk 00:01:08]} {[%emt 00:00:47]} Rxe5+ {[%clk 00:26:43]} {[%emt
00:00:23]} 0-1

[Event "Elitserien 2019/2020, round 7-9"]
[Site "Elite stadshotellet, Kungsgatan 6, Vaxjo, Sweden"]
[Date "2020.10.16"]
[Round "1.10"]
[White "Golubka, Petro"]
[Black "Ong, Kezli"]
[Result "1/2-1/2"]
[TimeControl "90 minutes for 40 moves + 30 minutes for the rest of the game + 30 seconds per move from move one."]
[WhiteTitle "GM"]
[WhiteFideId "14114224"]
[BlackFideId "1706500"]
[WhiteElo "2490"]
[BlackElo "2281"]

1. b3 {[%clk 01:30:00]} {[%emt 00:00:59]} Nf6 {[%clk 01:25:27]} {[%emt
00:05:33]} 2. Bb2 {[%clk 01:29:55]} {[%emt 00:00:34]} g6 {[%clk 01:25:39]}
{[%emt 00:00:19]} 3. g3 {[%clk 01:30:08]} {[%emt 00:00:18]} Bg7 {[%clk
01:25:18]} {[%emt 00:00:51]} 4. Bg2 {[%clk 01:30:31]} {[%emt 00:00:07]} O-O
{[%clk 01:24:28]} {[%emt 00:01:19]} 5. e3 {[%clk 01:29:45]} {[%emt 00:01:18]}
d5 {[%clk 01:19:47]} {[%emt 00:05:10]} 6. Ne2 {[%clk 01:28:43]} {[%emt
00:01:32]} c5 {[%clk 01:18:16]} {[%emt 00:02:01]} 7. O-O {[%clk 01:28:20]}
{[%emt 00:00:53]} Nc6 {[%clk 01:17:52]} {[%emt 00:00:52]} 8. d3 {[%clk
01:28:29]} {[%emt 00:00:22]} e5 {[%clk 01:12:53]} {[%emt 00:05:28]} 9. Nd2
{[%clk 01:28:46]} {[%emt 00:00:14]} h5 {[%clk 00:59:51]} {[%emt 00:13:32]} 10.
h3 {[%clk 01:28:14]} {[%emt 00:01:02]} Bf5 {[%clk 00:51:56]} {[%emt 00:08:25]}
11. f4 {[%clk 01:21:00]} {[%emt 00:07:44]} e4 {[%clk 00:35:33]} {[%emt
00:16:53]} 12. dxe4 {[%clk 01:16:54]} {[%emt 00:04:34]} Nxe4 {[%clk 00:33:22]}
{[%emt 00:02:42]} 13. Bxg7 {[%clk 01:16:12]} {[%emt 00:01:13]} Kxg7 {[%clk
00:33:41]} {[%emt 00:00:10]} 14. Nxe4 {[%clk 01:15:20]} {[%emt 00:01:22]} Bxe4
{[%clk 00:32:50]} {[%emt 00:01:22]} 15. Bxe4 {[%clk 01:15:02]} {[%emt
00:00:48]} dxe4 {[%clk 00:33:14]} {[%emt 00:00:06]} 16. Nc3 {[%clk 01:15:06]}
{[%emt 00:00:25]} Re8 {[%clk 00:12:03]} {[%emt 00:21:41]} 17. Qe1 {[%clk
01:09:31]} {[%emt 00:06:06]} Qa5 {[%clk 00:06:28]} {[%emt 00:06:05]} 18. a3
{[%clk 01:04:40]} {[%emt 00:05:21]} Rad8 {[%clk 00:05:39]} {[%emt 00:01:18]} 19.
g4 {[%clk 01:02:27]} {[%emt 00:02:44]} hxg4 {[%clk 00:04:36]} {[%emt 00:01:33]}
20. hxg4 {[%clk 01:02:43]} {[%emt 00:00:14]} Ne7 {[%clk 00:00:43]} {[%emt
00:04:22]} 21. f5 {[%clk 00:55:30]} {[%emt 00:07:43]} Nd5 {[%clk 00:00:46]}
{[%emt 00:00:29]} 22. f6+ {[%clk 00:47:40]} {[%emt 00:08:18]} Kg8 {[%clk
00:01:13]} {[%emt 00:00:03]} 23. Nxd5 {[%clk 00:44:38]} {[%emt 00:03:33]} Qxe1
{[%clk 00:01:40]} {[%emt 00:00:03]} 24. Raxe1 {[%clk 00:44:36]} {[%emt
00:00:32]} Rxd5 {[%clk 00:02:07]} {[%emt 00:00:02]} 25. Kg2 {[%clk 00:44:51]}
{[%emt 00:00:15]} Re6 {[%clk 00:01:06]} {[%emt 00:01:31]} 26. Kg3 {[%clk
00:41:46]} {[%emt 00:03:36]} g5 {[%clk 00:00:56]} {[%emt 00:00:39]} 27. c4
{[%clk 00:39:37]} {[%emt 00:02:36]} Rdd6 {[%clk 00:00:32]} {[%emt 00:00:57]} 28.
Rf5 {[%clk 00:39:47]} {[%emt 00:00:20]} Rxf6 {[%clk 00:00:39]} {[%emt
00:00:23]} 29. Rxg5+ {[%clk 00:39:58]} {[%emt 00:00:20]} Kf8 {[%clk 00:01:03]}
{[%emt 00:00:06]} 30. Rxc5 {[%clk 00:39:11]} {[%emt 00:01:16]} Rf3+ {[%clk
00:00:50]} {[%emt 00:00:42]} 31. Kh4 {[%clk 00:37:48]} {[%emt 00:01:54]} Rd3
{[%clk 00:00:46]} {[%emt 00:00:34]} 32. Rb5 {[%clk 00:31:13]} {[%emt 00:07:05]}
b6 {[%clk 00:01:05]} {[%emt 00:00:11]} 33. a4 {[%clk 00:27:35]} {[%emt
00:04:09]} Rdxe3 {[%clk 00:00:35]} {[%emt 00:01:00]} 34. Rxe3 {[%clk 00:27:54]}
{[%emt 00:00:10]} Rxe3 {[%clk 00:01:03]} {[%emt 00:00:02]} 35. a5 {[%clk
00:27:16]} {[%emt 00:01:08]} bxa5 {[%clk 00:00:41]} {[%emt 00:00:52]} 36. Rxa5
{[%clk 00:24:43]} {[%emt 00:03:03]} Rxb3 {[%clk 00:00:59]} {[%emt 00:00:12]} 37.
Rxa7 {[%clk 00:25:03]} {[%emt 00:00:10]} Rc3 {[%clk 00:00:34]} {[%emt
00:00:54]} 38. Ra5 {[%clk 00:22:25]} {[%emt 00:03:06]} Rxc4 {[%clk 00:00:41]}
{[%emt 00:00:25]} 39. Kg3 {[%clk 00:22:42]} {[%emt 00:00:14]} Kg7 {[%clk
00:00:44]} {[%emt 00:00:26]} 40. Kf4 {[%clk 00:23:01]} {[%emt 00:00:11]} e3+
{[%clk 00:00:43]} {[%emt 00:00:31]} 41. Kf3 {[%clk 00:23:14]} {[%emt 00:00:17]}
Kg6 {[%clk 00:25:04]} {[%emt 00:06:09]} 42. Kxe3 {[%clk 00:52:34]} {[%emt
00:01:10]} Rxg4 {[%clk 00:24:53]} {[%emt 00:00:41]} 43. Kf3 {[%clk 00:53:00]}
{[%emt 00:00:04]} Rb4 {[%clk 00:24:47]} {[%emt 00:00:34]} 44. Rc5 {[%clk
00:53:25]} {[%emt 00:00:06]} f6 {[%clk 00:23:37]} {[%emt 00:01:40]} 45. Ra5
{[%clk 00:52:21]} {[%emt 00:01:35]} Rb1 {[%clk 00:22:11]} {[%emt 00:01:55]} 46.
Kg3 {[%clk 00:52:21]} {[%emt 00:00:30]} Rf1 {[%clk 00:21:03]} {[%emt 00:01:38]}
47. Rb5 {[%clk 00:52:32]} {[%emt 00:00:19]} Rf5 {[%clk 00:19:38]} {[%emt
00:01:54]} 48. Rb4 {[%clk 00:52:29]} {[%emt 00:00:33]} Rc5 {[%clk 00:18:18]}
{[%emt 00:01:51]} 49. Ra4 {[%clk 00:51:16]} {[%emt 00:01:43]} Kf5 {[%clk
00:18:12]} {[%emt 00:00:35]} 50. Rf4+ {[%clk 00:51:37]} {[%emt 00:00:09]} Ke5
{[%clk 00:17:54]} {[%emt 00:00:48]} 51. Ra4 {[%clk 00:51:56]} {[%emt 00:00:11]}
Rc3+ {[%clk 00:17:44]} {[%emt 00:00:40]} 52. Kf2 {[%clk 00:52:18]} {[%emt
00:00:08]} f5 {[%clk 00:17:42]} {[%emt 00:00:33]} 53. Rb4 {[%clk 00:52:43]}
{[%emt 00:00:04]} Kf6 {[%clk 00:16:22]} {[%emt 00:01:52]} 54. Ra4 {[%clk
00:53:02]} {[%emt 00:00:10]} Kg5 {[%clk 00:16:45]} {[%emt 00:00:07]} 55. Rb4
{[%clk 00:53:25]} {[%emt 00:00:07]} Rc2+ {[%clk 00:16:34]} {[%emt 00:00:40]} 56.
Kf3 {[%clk 00:53:21]} {[%emt 00:00:35]} Rc3+ {[%emt 00:01:14]} 57. Ke4 {[%emt
00:00:05]} 1/2-1/2